[Event "RUS-chT Premier 2019"]
[Site "Sochi"]
[Date "2019.05.05"]
[Round "5.8"]
[White "Duzhakov, Ilya"]
[Black "Nozdrachev, Vladislav"]
[Result "1/2-1/2"]
[ECO "D41"]
[WhiteElo "2388"]
[BlackElo "2489"]
[Annotator "ChessBase"]
[PlyCount "66"]
[EventDate "2019.05.01"]
[EventType "team-tourn"]
[EventCountry "RUS"]
[SourceTitle "playchess.com"]
[Source "ChessBase"]
[SourceQuality "1"]
[TimeControl "40/5400+30:1800+30"]

1. d4 {[%emt 0:00:00]} Nf6 {[%emt 0:00:00]} 2. c4 {[%emt 0:00:00]} e6 {[%emt 0:00:00]} 3. Nf3 {[%emt 0:00:00]} d5 {[%emt 0:00:00]} 4. Nc3 {[%emt 0:00:24]} c5 {[%emt 0:00:00]} 5. cxd5 {[%emt 0:00:36]} Nxd5 {[%emt 0:00:00]} 6. e4 {[%emt 0:00:42]} Nxc3 {[%emt 0:00:04]} 7. bxc3 {[%emt 0:00:08]} cxd4 {[%emt 0:00:03]} 8. cxd4 {[%emt 0:00:09]} Bb4+ {[%emt 0:00:04]} 9. Bd2 {[%emt 0:00:16]} Bxd2+ {[%emt 0:00:06]} 10. Qxd2 {[%emt 0:00:07]} O-O {[%emt 0:00:04]} 11. Bd3 {[%emt 0:12:40]} Nc6 {[%emt 0:04:13]} 12. e5 {[%emt 0:01:29]} b6 {[%emt 0:21:25]} 13. O-O {[%emt 0:19:09]} Bb7 {[%emt 0:02:00]} 14. Rad1 {[%emt 0:05:10]} Ne7 {[%emt 0:10:44]} 15. Bb1 {[%emt 0:05:08]} Qd5 {[%emt 0:07:13]} 16. Rfe1 {[%emt 0:05:54]} Rfd8 {[%emt 0:04:31]} 17. Qg5 {[%emt 0:02:57]} Rd7 {[%emt 0:08:57]} 18. Qg4 {[%emt 0:13:59]} h6 {[%emt 0:03:21]} 19. Nd2 {[%emt 0:24:00]} h5 {[%emt 0:05:41]} 20. Qg5 {[%emt 0:00:58]} Qxd4 {[%emt 0:01:50]} 21. Qxh5 {[%emt 0:04:22]} g6 {[%emt 0:00:12]} 22. Qg5 {[%emt 0:01:46]} Rad8 {[%emt 0:00:35]} 23. h4 {[%emt 0:00:47]} Qb4 {[%emt 0:07:30]} 24. a3 {[%emt 0:00:01]} Qb2 {[%emt 0:01:45]} 25. Nc4 {[%emt 0:00:53]} Rxd1 {[%emt 0:01:30]} 26. Nxb2 {[%emt 0:00:01]} Rxe1+ 27. Kh2 Rd7 {[%emt 0:02:46]} 28. Bd3 {[%emt 0:00:03]} Be4 {[%emt 0:01:47]} 29. Bb5 {[%emt 0:01:12]} Bc6 {[%emt 0:00:04]} 30. Bd3 {[%emt 0:00:51]} Be4 {[%emt 0:03:55]} 31. Bb5 {[%emt 0:00:02]} Bc6 {[%emt 0:00:08]} 32. Bd3 {[%emt 0:00:01]} Be4 {[%emt 0:00:05]} 33. Bb5 {[%emt 0:00:01]} Bc6 {[%emt 0:00:09]} 1/2-1/2

[Event "RUS-chT Premier 2019"]
[Site "Sochi"]
[Date "2019.05.05"]
[Round "5.10"]
[White "Lintchevski, Daniil"]
[Black "Chernobay, Artem"]
[Result "1/2-1/2"]
[ECO "C67"]
[WhiteElo "2525"]
[BlackElo "2503"]
[Annotator "ChessBase"]
[PlyCount "84"]
[EventDate "2019.05.01"]
[EventType "team-tourn"]
[EventCountry "RUS"]
[SourceTitle "playchess.com"]
[Source "ChessBase"]
[SourceQuality "1"]
[TimeControl "40/5400+30:1800+30"]

1. e4 {[%emt 0:00:00]} e5 {[%emt 0:00:00]} 2. Nf3 {[%emt 0:00:46]} Nc6 {[%emt 0:00:00]} 3. Bb5 {[%emt 0:00:05]} Nf6 {[%emt 0:00:00]} 4. O-O {[%emt 0:03:38]} Nxe4 {[%emt 0:00:07]} 5. Re1 {[%emt 0:02:15]} Nd6 {[%emt 0:00:09]} 6. Nxe5 {[%emt 0:00:34]} Be7 {[%emt 0:00:22]} 7. Bf1 {[%emt 0:00:49]} Nxe5 {[%emt 0:01:30]} 8. Rxe5 {[%emt 0:00:06]} O-O {[%emt 0:00:03]} 9. d4 {[%emt 0:02:53]} Bf6 {[%emt 0:02:06]} 10. Re1 {[%emt 0:00:54]} Re8 {[%emt 0:00:53]} 11. Rxe8+ {[%emt 0:02:32]} Qxe8 {[%emt 0:03:48]} 12. Bf4 {[%emt 0:02:45]} Nf5 {[%emt 0:05:11]} 13. c3 {[%emt 0:00:19]} c6 {[%emt 0:02:16]} 14. Nd2 {[%emt 0:05:06]} d5 {[%emt 0:01:17]} 15. Nf3 {[%emt 0:00:29]} Nh4 {[%emt 0:08:32]} 16. Nxh4 {[%emt 0:02:20]} Bxh4 {[%emt 0:00:06]} 17. Qd2 {[%emt 0:00:04]} Bf5 {[%emt 0:07:23]} 18. Re1 {[%emt 0:00:31]} Qd7 {[%emt 0:00:10]} 19. Bg5 {[%emt 0:00:37]} Bxg5 {[%emt 0:00:12]} 20. Qxg5 {[%emt 0:00:05]} f6 {[%emt 0:00:23]} 21. Qf4 {[%emt 0:01:02]} Bg6 {[%emt 0:03:15]} 22. h4 {[%emt 0:01:41]} h6 {[%emt 0:05:43]} 23. f3 {[%emt 0:07:10]} Re8 {[%emt 0:04:49]} 24. Rxe8+ {[%emt 0:00:34]} Qxe8 {[%emt 0:00:03]} 25. Kf2 {[%emt 0:00:12]} Qd8 {[%emt 0:01:17]} 26. a3 {[%emt 0:03:57]} a5 {[%emt 0:00:50]} 27. Be2 {[%emt 0:06:16]} Kh7 {[%emt 0:17:06]} 28. g4 {[%emt 0:02:05]} Kg8 {[%emt 0:01:56]} 29. h5 {[%emt 0:01:00]} Bb1 {[%emt 0:07:54]} 30. c4 {[%emt 0:08:59]} dxc4 {[%emt 0:06:07]} 31. Bxc4+ {[%emt 0:00:17]} Kh8 {[%emt 0:00:03]} 32. Bf7 {[%emt 0:09:16]} Bh7 {[%emt 0:01:23]} 33. Bg6 {[%emt 0:01:12]} Bg8 {[%emt 0:00:35]} 34. Qe3 {[%emt 0:00:25]} Qb6 {[%emt 0:04:52]} 35. Qc3 {[%emt 0:01:51]} Qc7 {[%emt 0:00:10]} 36. Kg2 {[%emt 0:00:20]} Qf4 {[%emt 0:00:33]} 37. Qxa5 {[%emt 0:07:06]} Qxd4 {[%emt 0:00:07]} 38. Qc3 {[%emt 0:01:32]} Qd1 {[%emt 0:01:48]} 39. Qe3 {[%emt 0:03:37]} Qd6 {[%emt 0:04:35]} 40. b4 {[%emt 0:00:00]} Qd5 {[%emt 0:00:00]} 41. Kf2 {[%emt 0:08:31]} Qd6 {[%emt 0:03:19]} 42. Kg2 {[%emt 0:02:21]} Qd5 {[%emt 0:00:05]} 1/2-1/2

[Event "RUS-chT Premier 2019"]
[Site "Sochi"]
[Date "2019.05.05"]
[Round "5.15"]
[White "Timofeev, Artyom"]
[Black "Esipenko, Andrey"]
[Result "1/2-1/2"]
[ECO "C48"]
[WhiteElo "2602"]
[BlackElo "2620"]
[Annotator "RC"]
[PlyCount "81"]
[EventDate "2019.05.01"]
[EventType "team-tourn"]
[EventCountry "RUS"]
[SourceTitle "playchess.com"]
[Source "ChessBase"]
[SourceQuality "1"]
[TimeControl "40/5400+30:1800+30"]

1. e4 {[%emt 0:00:00]} e5 {[%emt 0:00:00]} 2. Nf3 {[%emt 0:00:00]} Nc6 {[%emt 0:00:20]} 3. Nc3 {[%emt 0:00:25]} Nf6 {[%emt 0:00:36]} 4. Bb5 {[%emt 0:01:56]} Bd6 {[%emt 0:04:03]} 5. a3 {[%emt 0:11:14]} O-O {[%emt 0:01:15]} 6. O-O {[%emt 0:00:24]} a6 {[%emt 0:01:13]} 7. Bc4 {[%emt 0:00:08]} Bc5 {[%emt 0:00:36]} 8. d3 {[%emt 0:01:03]} d6 {[%emt 0:01:59]} 9. h3 {[%emt 0:01:42]} h6 {[%emt 0:00:56]} 10. Re1 {[%emt 0:01:09]} Re8 {[%emt 0:06:36]} 11. Be3 {[%emt 0:01:33]} Bxe3 {[%emt 0:03:36]} 12. Rxe3 {[%emt 0:00:43]} Nd4 {[%emt 0:01:23]} 13. Nd5 {[%emt 0:06:21]} Nxd5 {[%emt 0:02:56]} 14. Bxd5 {[%emt 0:00:09]} c6 {[%emt 0:00:32]} 15. Ba2 {[%emt 0:00:24]} Nxf3+ {[%emt 0:00:19]} 16. Qxf3 {[%emt 0:03:01]} Be6 {[%emt 0:00:08]} 17. Bxe6 {[%emt 0:02:09]} Rxe6 {[%emt 0:00:06]} 18. Qe2 {[%emt 0:01:45]} Qb6 {[%emt 0:02:58]} 19. c3 {[%emt 0:07:49]} d5 {[%emt 0:02:35]} 20. exd5 {[%emt 0:28:21]} cxd5 {[%emt 0:00:20]} 21. c4 {[%emt 0:05:27]} d4 {[%emt 0:04:49]} 22. Rxe5 {[%emt 0:01:37]} Rxe5 {[%emt 0:00:21]} 23. Qxe5 {[%emt 0:00:05]} Qxb2 {[%emt 0:00:05]} 24. Re1 {[%emt 0:06:42]} Qxa3 {[%emt 0:04:15]} 25. Qxd4 {[%emt 0:00:09]} Qb4 {[%emt 0:00:20]} 26. Qa1 {[%emt 0:01:51]} Rd8 {[%emt 0:05:25]} 27. Rb1 {[%emt 0:01:31]} Qe7 {[%emt 0:00:28]} 28. d4 {[%emt 0:01:27]} Qe4 {[%emt 0:07:27]} 29. Rd1 {[%emt 0:02:26]} Qe2 {[%emt 0:03:09]} 30. Rc1 {[%emt 0:01:21]} Qe7 {[%emt 0:18:06]} 31. Qb2 {[%emt 0:01:54]} Qd7 {[%emt 0:02:37]} 32. d5 {[%emt 0:02:31]} b5 {[%emt 0:00:26]} 33. cxb5 {[%emt 0:00:47]} Qxb5 {[%emt 0:00:31]} 34. Qxb5 {[%emt 0:00:30]} axb5 {[%emt 0:00:05]} 35. Rc5 {[%emt 0:00:06]} b4 {[%emt 0:00:10]} 36. Rb5 {[%emt 0:00:08]} b3 {[%emt 0:00:05]} 37. Rxb3 {[%emt 0:00:05]} Rxd5 {[%emt 0:00:05]} 38. g3 {[%emt 0:00:08]} h5 {[%emt 0:00:06]} 39. h4 {[%emt 0:00:05]} g6 {[%emt 0:00:05]} 40. Kg2 {[%emt 0:00:00]} Kg7 {[%emt 0:00:00]} 41. Ra3 {[%emt 0:00:08]} 1/2-1/2

[Event "RUS-chT Premier 2019"]
[Site "Sochi"]
[Date "2019.05.05"]
[Round "5.17"]
[White "Makhmutov, Rail"]
[Black "Antipov, Mikhail Al."]
[Result "1/2-1/2"]
[ECO "E32"]
[WhiteElo "2390"]
[BlackElo "2595"]
[Annotator "RC"]
[PlyCount "80"]
[EventDate "2019.05.01"]
[EventType "team-tourn"]
[EventCountry "RUS"]
[SourceTitle "playchess.com"]
[Source "ChessBase"]
[SourceQuality "1"]
[TimeControl "40/5400+30:1800+30"]

1. d4 {[%emt 0:00:00]} Nf6 {[%emt 0:00:00]} 2. c4 {[%emt 0:00:00]} e6 {[%emt 0:00:00]} 3. Nc3 {[%emt 0:00:19]} Bb4 {[%emt 0:00:00]} 4. Qc2 {[%emt 0:00:24]} O-O {[%emt 0:00:00]} 5. Nf3 {[%emt 0:01:03]} d5 {[%emt 0:02:32]} 6. a3 {[%emt 0:05:44]} Be7 {[%emt 0:02:23]} 7. Bg5 {[%emt 0:14:25]} h6 {[%emt 0:04:30]} 8. Bh4 {[%emt 0:00:19]} b6 {[%emt 0:00:38]} 9. cxd5 {[%emt 0:07:42]} exd5 {[%emt 0:05:21]} 10. e3 {[%emt 0:00:20]} Bb7 {[%emt 0:00:14]} 11. Bd3 {[%emt 0:07:34]} Re8 {[%emt 0:21:29]} 12. O-O {[%emt 0:02:39]} Ne4 {[%emt 0:11:29]} 13. Bxe7 {[%emt 0:02:25]} Qxe7 {[%emt 0:04:16]} 14. b4 {[%emt 0:07:05]} a6 {[%emt 0:04:25]} 15. Qb3 {[%emt 0:09:02]} Nd6 {[%emt 0:06:47]} 16. a4 {[%emt 0:03:20]} c6 {[%emt 0:05:13]} 17. a5 {[%emt 0:06:41]} b5 {[%emt 0:00:28]} 18. Rfe1 {[%emt 0:02:09]} Nd7 {[%emt 0:00:49]} 19. e4 {[%emt 0:06:03]} dxe4 {[%emt 0:00:29]} 20. Nxe4 {[%emt 0:00:19]} Nxe4 {[%emt 0:00:06]} 21. Bxe4 {[%emt 0:00:43]} Qf6 {[%emt 0:03:50]} 22. Bc2 {[%emt 0:05:55]} Rad8 {[%emt 0:03:47]} 23. h3 {[%emt 0:03:50]} Nf8 {[%emt 0:01:24]} 24. Re3 {[%emt 0:01:34]} Rxe3 {[%emt 0:13:48]} 25. Qxe3 {[%emt 0:00:35]} c5 {[%emt 0:00:20]} 26. bxc5 {[%emt 0:03:10]} Bxf3 {[%emt 0:00:05]} 27. Qxf3 {[%emt 0:00:11]} Qxf3 {[%emt 0:00:05]} 28. gxf3 {[%emt 0:00:05]} Rxd4 {[%emt 0:00:04]} 29. Bf5 {[%emt 0:04:16]} Rd8 {[%emt 0:07:56]} 30. c6 {[%emt 0:02:22]} Ne6 {[%emt 0:00:08]} 31. Bxe6 {[%emt 0:00:36]} fxe6 {[%emt 0:00:04]} 32. Rc1 {[%emt 0:00:41]} Rc8 {[%emt 0:00:04]} 33. c7 {[%emt 0:00:40]} b4 {[%emt 0:00:03]} 34. Rc6 {[%emt 0:00:47]} b3 {[%emt 0:00:11]} 35. Rxa6 {[%emt 0:00:39]} Rxc7 {[%emt 0:00:03]} 36. Rb6 {[%emt 0:00:14]} Ra7 {[%emt 0:00:03]} 37. a6 {[%emt 0:01:18]} b2 {[%emt 0:00:04]} 38. Kg2 {[%emt 0:00:09]} Rxa6 {[%emt 0:00:10]} 39. Rxb2 {[%emt 0:00:06]} Kf7 {[%emt 0:00:03]} 40. Rb4 {[%emt 0:00:00]} Ra5 {[%emt 0:00:00]} 1/2-1/2

[Event "RUS-chT Premier 2019"]
[Site "Sochi"]
[Date "2019.05.05"]
[Round "5.18"]
[White "Kryakvin, Dmitry"]
[Black "Toropov, Pavel"]
[Result "1-0"]
[ECO "A11"]
[WhiteElo "2588"]
[BlackElo "2327"]
[Annotator "ChessBase"]
[PlyCount "113"]
[EventDate "2019.05.01"]
[EventType "team-tourn"]
[EventCountry "RUS"]
[SourceTitle "playchess.com"]
[Source "ChessBase"]
[SourceQuality "1"]
[TimeControl "40/5400+30:1800+30"]

1. c4 {[%emt 0:00:00]} c6 {[%emt 0:00:00]} 2. Nf3 {[%emt 0:00:00]} d5 {[%emt 0:00:00]} 3. e3 {[%emt 0:00:00]} Nf6 {[%emt 0:00:00]} 4. Nc3 {[%emt 0:00:05]} a6 {[%emt 0:00:00]} 5. d4 {[%emt 0:00:08]} b5 {[%emt 0:01:26]} 6. b3 {[%emt 0:00:17]} Bg4 {[%emt 0:00:06]} 7. Qd2 {[%emt 0:00:39]} Nbd7 {[%emt 0:08:57]} 8. Ne5 {[%emt 0:05:04]} Nxe5 {[%emt 0:37:55]} 9. dxe5 {[%emt 0:00:13]} Nd7 {[%emt 0:00:03]} 10. cxd5 {[%emt 0:02:52]} cxd5 {[%emt 0:00:05]} 11. Qxd5 {[%emt 0:02:13]} e6 {[%emt 0:08:13]} 12. Qd4 {[%emt 0:01:34]} Bh5 {[%emt 0:00:28]} 13. Be2 {[%emt 0:20:29]} Bc5 {[%emt 0:01:01]} 14. Qf4 {[%emt 0:13:39]} g5 {[%emt 0:13:48]} 15. Qg3 {[%emt 0:01:02]} Bb4 {[%emt 0:03:11]} 16. e4 {[%emt 0:05:13]} Rc8 {[%emt 0:17:30]} 17. Bd2 {[%emt 0:01:07]} Nc5 {[%emt 0:02:45]} 18. Qe3 {[%emt 0:03:58]} Bxe2 {[%emt 0:01:05]} 19. Kxe2 {[%emt 0:00:09]} Bxc3 {[%emt 0:00:25]} 20. Bxc3 {[%emt 0:00:12]} Nxe4 {[%emt 0:00:18]} 21. Qxe4 {[%emt 0:00:27]} Rxc3 {[%emt 0:00:03]} 22. Rad1 {[%emt 0:01:10]} Qc7 {[%emt 0:02:48]} 23. h4 {[%emt 0:05:40]} g4 {[%emt 0:00:27]} 24. Rhe1 {[%emt 0:02:30]} g3 {[%emt 0:00:49]} 25. Qa8+ {[%emt 0:03:12]} Qc8 {[%emt 0:00:13]} 26. Qxc8+ {[%emt 0:00:06]} Rxc8 {[%emt 0:00:01]} 27. Rc1 {[%emt 0:00:21]} Rd8 {[%emt 0:01:21]} 28. fxg3 {[%emt 0:00:29]} Rg8 {[%emt 0:00:01]} 29. Rc3 {[%emt 0:00:19]} Rg4 {[%emt 0:00:15]} 30. Kf3 {[%emt 0:02:54]} h5 {[%emt 0:00:28]} 31. Rec1 {[%emt 0:04:35]} Rgd4 {[%emt 0:00:34]} 32. R1c2 {[%emt 0:03:36]} R8d7 {[%emt 0:00:08]} 33. Rc8+ {[%emt 0:02:04]} Ke7 {[%emt 0:00:01]} 34. R8c7 {[%emt 0:00:09]} Rd3+ {[%emt 0:00:12]} 35. Kf4 {[%emt 0:01:19]} R3d4+ {[%emt 0:00:10]} 36. Kg5 {[%emt 0:00:46]} Rg4+ {[%emt 0:00:09]} 37. Kxh5 {[%emt 0:00:06]} Rxg3 {[%emt 0:00:05]} 38. Rxd7+ {[%emt 0:01:25]} Kxd7 {[%emt 0:00:00]} 39. Kh6 {[%emt 0:00:14]} Ke7 {[%emt 0:03:46]} 40. h5 {[%emt 0:00:00]} a5 {[%emt 0:00:00]} 41. Rc7+ {[%emt 0:10:08]} Kf8 {[%emt 0:00:20]} 42. Ra7 {[%emt 0:00:34]} a4 {[%emt 0:05:36]} 43. bxa4 {[%emt 0:00:38]} bxa4 {[%emt 0:00:10]} 44. Rxa4 {[%emt 0:02:13]} Rxg2 {[%emt 0:00:03]} 45. Ra8+ {[%emt 0:01:21]} Ke7 {[%emt 0:00:06]} 46. Ra7+ {[%emt 0:00:05]} Kf8 {[%emt 0:00:10]} 47. a4 {[%emt 0:00:10]} Re2 {[%emt 0:04:24]} 48. Ra5 {[%emt 0:00:12]} Re4 {[%emt 0:23:30]} 49. Kh7 {[%emt 0:02:06]} Rg4 {[%emt 0:00:48]} 50. h6 {[%emt 0:00:32]} Re4 {[%emt 0:00:21]} 51. Kh8 {[%emt 0:01:06]} Rg4 {[%emt 0:00:41]} 52. Ra8+ {[%emt 0:02:01]} Ke7 {[%emt 0:00:01]} 53. a5 {[%emt 0:00:22]} Rg6 {[%emt 0:00:32]} 54. h7 {[%emt 0:00:38]} Rg1 {[%emt 0:00:14]} 55. a6 {[%emt 0:00:24]} Ra1 {[%emt 0:00:57]} 56. a7 {[%emt 0:00:59]} Ra2 {[%emt 0:00:18]} 57. Rb8 {[%emt 0:00:41]} 1-0

[Event "RUS-chT Premier 2019"]
[Site "Sochi"]
[Date "2019.05.05"]
[Round "5.22"]
[White "Najer, Evgeniy"]
[Black "Bocharov, Dmitry"]
[Result "1-0"]
[ECO "B94"]
[WhiteElo "2674"]
[BlackElo "2530"]
[Annotator "RC"]
[PlyCount "68"]
[EventDate "2019.05.01"]
[EventType "team-tourn"]
[EventCountry "RUS"]
[SourceTitle "playchess.com"]
[Source "ChessBase"]
[SourceQuality "1"]
[TimeControl "40/5400+30:1800+30"]

1. e4 {[%emt 0:00:00]} c5 {[%emt 0:00:00]} 2. Nf3 {[%emt 0:00:00]} d6 {[%emt 0:00:00]} 3. d4 {[%emt 0:00:24]} cxd4 {[%emt 0:00:32]} 4. Nxd4 {[%emt 0:00:12]} Nf6 {[%emt 0:00:06]} 5. Nc3 {[%emt 0:00:09]} a6 {[%emt 0:00:06]} 6. Bg5 {[%emt 0:01:21]} Nbd7 {[%emt 0:00:25]} 7. Bc4 {[%emt 0:00:08]} Qb6 {[%emt 0:01:41]} 8. Qd2 {[%emt 0:05:39]} Qxb2 {[%emt 0:03:19]} 9. O-O {[%emt 0:00:12]} Qb4 {[%emt 0:03:32]} 10. Bb3 {[%emt 0:00:15]} e6 {[%emt 0:21:22]} 11. Rad1 {[%emt 0:07:00]} Be7 {[%emt 0:06:42]} 12. Bxe6 {[%emt 0:05:43]} fxe6 {[%emt 0:02:15]} 13. Nxe6 {[%emt 0:00:06]} Kf7 {[%emt 0:08:28]} 14. Nc7 {[%emt 0:00:10]} Nb6 {[%emt 0:10:32]} 15. Rb1 {[%emt 0:02:18]} Qc5 {[%emt 0:07:51]} 16. Nxa8 {[%emt 0:00:48]} Nxa8 {[%emt 0:00:07]} 17. Bxf6 {[%emt 0:05:09]} Bxf6 {[%emt 0:11:46]} 18. Nd5 {[%emt 0:00:14]} Nc7 {[%emt 0:03:28]} 19. Nxf6 {[%emt 0:00:07]} gxf6 {[%emt 0:00:03]} 20. Rb3 {[%emt 0:00:16]} Rg8 {[%emt 0:03:02]} 21. Rc3 {[%emt 0:39:41]} Qa5 {[%emt 0:02:22]} 22. f4 {[%emt 0:00:28]} Be6 {[%emt 0:09:49]} 23. a4 {[%emt 0:05:07]} b5 {[%emt 0:02:26]} 24. Rff3 {[%emt 0:06:11]} bxa4 {[%emt 0:01:01]} 25. f5 {[%emt 0:00:17]} Qb6+ {[%emt 0:00:38]} 26. Qe3 {[%emt 0:00:07]} Qxe3+ {[%emt 0:00:31]} 27. Rfxe3 {[%emt 0:00:04]} Nb5 {[%emt 0:00:45]} 28. fxe6+ Kxe6 {[%emt 0:00:06]} 29. Rc4 {[%emt 0:02:47]} a3 {[%emt 0:00:09]} 30. Ra4 {[%emt 0:00:04]} Ke5 {[%emt 0:01:09]} 31. Rxa6 {[%emt 0:04:10]} Kd4 {[%emt 0:00:41]} 32. Rb3 {[%emt 0:01:58]} Nc3 {[%emt 0:00:34]} 33. Rxd6+ {[%emt 0:03:14]} Ke5 {[%emt 0:00:21]} 34. Ra6 Rh8 1-0

[Event "RUS-chT Premier 2019"]
[Site "Sochi"]
[Date "2019.05.05"]
[Round "5.23"]
[White "Kezin, Roman"]
[Black "Ponkratov, Pavel"]
[Result "0-1"]
[ECO "E04"]
[WhiteElo "2468"]
[BlackElo "2640"]
[Annotator "RC"]
[PlyCount "80"]
[EventDate "2019.05.01"]
[EventType "team-tourn"]
[EventCountry "RUS"]
[SourceTitle "playchess.com"]
[Source "ChessBase"]
[SourceQuality "1"]
[TimeControl "40/5400+30:1800+30"]

1. d4 {[%emt 0:00:00]} Nf6 {[%emt 0:00:00]} 2. c4 {[%emt 0:00:00]} e6 {[%emt 0:00:00]} 3. g3 {[%emt 0:00:00]} d5 {[%emt 0:00:00]} 4. Nf3 {[%emt 0:00:16]} dxc4 {[%emt 0:00:00]} 5. Bg2 {[%emt 0:00:25]} Bb4+ {[%emt 0:00:00]} 6. Bd2 {[%emt 0:02:54]} c5 {[%emt 0:00:00]} 7. a3 {[%emt 0:28:37]} Bxd2+ {[%emt 0:00:06]} 8. Nbxd2 {[%emt 0:00:04]} cxd4 {[%emt 0:00:06]} 9. Nxc4 {[%emt 0:00:03]} Nc6 {[%emt 0:00:06]} 10. O-O {[%emt 0:00:11]} O-O {[%emt 0:00:06]} 11. Rc1 {[%emt 0:07:06]} Rb8 {[%emt 0:02:06]} 12. Qd2 {[%emt 0:18:30]} d3 {[%emt 0:03:35]} 13. exd3 {[%emt 0:05:15]} Ne7 {[%emt 0:04:55]} 14. Nce5 {[%emt 0:09:46]} Bd7 {[%emt 0:04:46]} 15. Rc2 {[%emt 0:02:36]} Ba4 {[%emt 0:10:37]} 16. Rc5 {[%emt 0:03:28]} Bc6 {[%emt 0:04:43]} 17. Rfc1 {[%emt 0:02:20]} Qd6 {[%emt 0:00:32]} 18. b4 {[%emt 0:00:36]} Rbd8 {[%emt 0:02:41]} 19. Nxc6 {[%emt 0:03:53]} Nxc6 {[%emt 0:00:48]} 20. b5 {[%emt 0:01:11]} Na5 {[%emt 0:03:45]} 21. Qb4 {[%emt 0:00:49]} b6 {[%emt 0:14:07]} 22. Rc7 {[%emt 0:00:08]} Qxd3 {[%emt 0:00:13]} 23. Rxa7 {[%emt 0:09:06]} Qe2 {[%emt 0:04:17]} 24. h3 {[%emt 0:03:07]} Nd5 {[%emt 0:01:30]} 25. Nd4 {[%emt 0:00:20]} Nxb4 {[%emt 0:03:07]} 26. Nxe2 {[%emt 0:00:01]} Nd3 {[%emt 0:00:50]} 27. Rcc7 {[%emt 0:01:24]} g6 {[%emt 0:02:05]} 28. Ra6 {[%emt 0:00:39]} Ne5 {[%emt 0:04:42]} 29. Rxb6 {[%emt 0:00:35]} Rd1+ {[%emt 0:00:04]} 30. Kh2 {[%emt 0:00:13]} Rd2 {[%emt 0:00:04]} 31. Nc3 {[%emt 0:01:17]} Rxf2 {[%emt 0:00:05]} 32. Kg1 {[%emt 0:00:24]} Rb2 {[%emt 0:00:21]} 33. Ra6 {[%emt 0:00:44]} Nac4 {[%emt 0:00:15]} 34. Rc5 {[%emt 0:00:24]} Rd8 {[%emt 0:00:36]} 35. Ra4 {[%emt 0:00:34]} Rd3 {[%emt 0:00:50]} 36. Rb4 {[%emt 0:00:33]} Rc2 {[%emt 0:06:58]} 37. Rbxc4 {[%emt 0:00:07]} Nxc4 {[%emt 0:00:07]} 38. Ne4 {[%emt 0:00:50]} Rxa3 {[%emt 0:00:35]} 39. Bf1 {[%emt 0:00:27]} Ra1 {[%emt 0:01:07]} 40. Rc8+ {[%emt 0:00:00]} Kg7 {[%emt 0:00:00]} 0-1

[Event "RUS-chT Premier 2019"]
[Site "Sochi"]
[Date "2019.05.07"]
[Round "6.1"]
[White "Lobanov, Sergei"]
[Black "Motylev, Alexander"]
[Result "0-1"]
[ECO "B12"]
[WhiteElo "2513"]
[BlackElo "2650"]
[Annotator "ChessBase"]
[PlyCount "80"]
[EventDate "2019.05.01"]
[EventType "team-tourn"]
[EventCountry "RUS"]
[SourceTitle "playchess.com"]
[Source "ChessBase"]
[SourceQuality "1"]
[TimeControl "40/5400+30:1800+30"]

1. e4 {[%emt 0:00:00]} c6 {[%emt 0:00:00]} 2. d4 {[%emt 0:00:00]} d5 {[%emt 0:00:00]} 3. e5 {[%emt 0:00:00]} c5 {[%emt 0:00:00]} 4. dxc5 {[%emt 0:00:00]} e6 {[%emt 0:00:04]} 5. a3 {[%emt 0:00:18]} Bxc5 {[%emt 0:00:07]} 6. b4 {[%emt 0:00:58]} Bb6 {[%emt 0:00:34]} 7. Qg4 {[%emt 0:05:18]} Ne7 {[%emt 0:00:24]} 8. Nf3 {[%emt 0:06:52]} Ng6 {[%emt 0:00:36]} 9. Bd3 {[%emt 0:01:48]} Nc6 {[%emt 0:00:13]} 10. O-O {[%emt 0:08:37]} h5 {[%emt 0:26:24]} 11. Qg3 {[%emt 0:00:20]} Nd4 {[%emt 0:02:26]} 12. Nxd4 {[%emt 0:33:32]} Bxd4 {[%emt 0:04:00]} 13. Bxg6 {[%emt 0:00:04]} Bxa1 {[%emt 0:01:55]} 14. Bd3 {[%emt 0:00:11]} Kf8 {[%emt 0:07:16]} 15. Be3 {[%emt 0:07:09]} h4 {[%emt 0:02:53]} 16. Bc5+ {[%emt 0:00:05]} Kg8 {[%emt 0:00:28]} 17. Qf4 {[%emt 0:00:18]} h3 {[%emt 0:11:22]} 18. g3 {[%emt 0:02:01]} a5 {[%emt 0:10:47]} 19. b5 {[%emt 0:05:54]} Bd7 {[%emt 0:09:39]} 20. c3 {[%emt 0:07:54]} a4 {[%emt 0:03:08]} 21. b6 {[%emt 0:10:04]} Rc8 {[%emt 0:11:09]} 22. Bd4 {[%emt 0:03:28]} Qe8 {[%emt 0:01:13]} 23. Qd2 {[%emt 0:05:00]} Bb5 {[%emt 0:00:09]} 24. Rc1 {[%emt 0:00:17]} Bxd3 {[%emt 0:04:20]} 25. Qxd3 {[%emt 0:00:01]} Qc6 {[%emt 0:00:40]} 26. Kf1 {[%emt 0:00:34]} Qc4 {[%emt 0:02:10]} 27. Ke2 {[%emt 0:01:48]} Qb3 {[%emt 0:00:51]} 28. Nd2 {[%emt 0:00:51]} Qxa3 {[%emt 0:00:10]} 29. Kd1 {[%emt 0:00:32]} Bb2 {[%emt 0:00:32]} 30. Rc2 {[%emt 0:00:33]} Qa1+ {[%emt 0:00:18]} 31. Ke2 {[%emt 0:00:01]} a3 {[%emt 0:00:23]} 32. Qb5 {[%emt 0:00:04]} Kh7 {[%emt 0:01:15]} 33. Qd3+ {[%emt 0:01:18]} Kg8 {[%emt 0:00:20]} 34. Qb5 {[%emt 0:00:13]} Kh7 {[%emt 0:00:12]} 35. Qd3+ {[%emt 0:00:10]} g6 {[%emt 0:00:04]} 36. Nf3 {[%emt 0:01:01]} Kg7 {[%emt 0:00:27]} 37. Ng5 {[%emt 0:00:23]} Qb1 {[%emt 0:00:26]} 38. Qd2 {[%emt 0:00:04]} Rh5 {[%emt 0:00:23]} 39. f4 {[%emt 0:00:05]} Rxg5 {[%emt 0:00:24]} 40. fxg5 {[%emt 0:00:00]} a2 {[%emt 0:00:00]} 0-1